fUST/lending_fUST_20240124
["ID","MTS","AMOUNT","RATE_DAILY","PERIOD"]
[312615625,1706091968327,8175.947124,0.00019179,2]
[312615626,1706091973857,154.86062544,0.00018439,3]
[312615627,1706091993879,154.86062544,0.00018439,3]
[312615628,1706091998099,-154.86062544,0.0002006,2]
[312615629,1706091998122,-0.06676339,0.0002006,2]
[312615630,1706092011881,154.86062544,0.00018439,3]
[312615631,1706092025873,154.86062544,0.00018439,3]
[312615632,1706092047882,154.86062544,0.00018439,3]
[312615633,1706092063872,154.86062544,0.00018439,3]
[312615634,1706092087880,154.86062544,0.00018439,3]
[312615635,1706092102749,38952.5780738,0.00019142,2]
[312615636,1706092107878,154.86062544,0.00018439,3]
[312615637,1706092127886,154.86062544,0.00021412,4]
[312615639,1706092146092,-156.07097879,0.00020049,2]
[312615640,1706092146112,-237.74153663,0.00020049,2]
[312615641,1706092146132,-2175.20296417,0.0002005,2]
[312615642,1706092147912,154.86062544,0.00021412,4]
[312615643,1706092149134,-640.79971465,0.0002005,2]
[312615644,1706092149155,-32.5251878,0.00020051,2]
[312615645,1706092169896,154.86062544,0.00021412,4]
[312615646,1706092185916,154.86062544,0.00021412,4]
[312615647,1706092201907,154.86062544,0.00021412,4]
[312615648,1706092221908,154.86062544,0.00021412,4]
[312615697,1706092241913,154.86062544,0.00021323,4]
[312615702,1706092243432,-619.599095,0.00020045,2]
[312615703,1706092243442,-351.80375011,0.00020046,2]
[312615705,1706092243451,-5210.1860001,0.00020046,2]
[312615707,1706092243461,-678.88445844,0.00020079,2]
[312615710,1706092243470,-154.86062544,0.0002008,2]
[312615712,1706092243479,-2003.13525957,0.00020081,2]
[312615713,1706092243488,-1184.38033422,0.00020194,2]
[312615714,1706092243795,-360.12577253,0.00020194,2]
[312615715,1706092243808,-532.34081257,0.00020194,2]
[312615716,1706092243900,-1967.69070426,0.00021412,2]
[312615717,1706092243913,-117.26102883,0.00021412,2]
[312615718,1706092243922,-300.0,0.00021412,2]
[312615719,1706092243931,-1826.29054789,0.00021726,2]
[312615720,1706092243941,-979.69968346,0.00021726,2]
[312615721,1706092243950,-151.0,0.00021726,2]
[312615722,1706092243960,-850.30063575,0.0002173,2]
[312615723,1706092243969,-348.09862208,0.0002173,2]
[312615724,1706092243980,-21.79456227,0.0002173,2]
[312615725,1706092243991,-160.53607004,0.0002173,2]
[312615726,1706092244000,-926.21194152,0.0002173,2]
[312615727,1706092244010,-324.0961055,0.00021731,2]
[312615728,1706092244019,-151.0,0.00021732,2]
[312615729,1706092244028,-245.0,0.00021732,2]
[312615730,1706092244037,-233.31429,0.00021732,2]
[312615731,1706092244046,-233.31429,0.00021732,2]
[312615732,1706092244057,-233.31429,0.00021732,2]
[312615733,1706092244066,-233.31429,0.00021732,2]
[312615734,1706092244077,-151.0,0.00021732,2]
[312615735,1706092244086,-151.0,0.00021732,2]
[312615736,1706092244096,-233.31429,0.00021736,2]
[312615737,1706092244105,-233.31429,0.00021736,2]
[312615738,1706092244114,-151.0,0.00021736,2]
[312615739,1706092244124,-343.09681091,0.00021736,2]
[312615740,1706092244133,-154.97398562,0.00021736,2]
[312615741,1706092244142,-174.78862,0.00021918,2]
[312615742,1706092244151,-233.31429,0.00022,2]
[312615743,1706092244160,-233.31429,0.00022,2]
[312615744,1706092244169,-233.31429,0.00022,2]
[312615745,1706092244179,-233.31429,0.00022,2]
[312615746,1706092244188,-151.0,0.00022,2]
[312615747,1706092244197,-219.48049,0.00022,2]
[312615748,1706092244206,-151.0,0.00022,2]
[312615749,1706092244215,-151.0,0.00022,2]
[312615750,1706092244225,-426.10577832,0.00022,2]
[312615751,1706092244234,-174.78862,0.00022559,2]
[312615752,1706092244243,-1587.22615699,0.00022998,2]
[312615756,1706092248422,-359.64,0.00020044,2]
[312615757,1706092248431,-154.86062544,0.00022558,2]
[312615759,1706092248440,-647.29486353,0.00022998,2]
[312615760,1706092248453,-581.4816583,0.00022998,2]
[312615761,1706092248462,-191.6403417,0.00022999,2]
[312615762,1706092248787,-1335.924785,0.00022999,2]
[312615763,1706092257904,154.86062544,0.00021323,4]
[312615764,1706092275907,154.86062544,0.00021323,4]
[312615765,1706092306812,154.86062544,0.00021323,4]
[312615767,1706092329917,154.86062544,0.00021323,4]
[312615768,1706092349935,154.86062544,0.00021323,4]
[312615769,1706092367929,154.86062544,0.00021323,4]
[312615770,1706092383929,154.86062544,0.00021323,4]
[312615771,1706092401937,154.86062544,0.00021323,4]
[312615772,1706092417924,154.86062544,0.00021323,4]
[312615775,1706092433931,154.86062544,0.00021323,4]
[312615776,1706092451934,154.86062544,0.00021323,4]
[312615778,1706092469932,154.86062544,0.00021323,4]
[312615780,1706092493972,154.86062544,0.00021323,4]
[312615781,1706092519940,154.86062544,0.00021323,4]
[312615782,1706092532965,865.13850327,0.0001963,2]
[312615783,1706092537945,154.86062544,0.00021323,4]
[312615784,1706092559972,154.86062544,0.00021323,4]
[312615785,1706092577972,154.86062544,0.00021323,4]
[312615786,1706092600037,154.86062544,0.00021323,4]
[312615788,1706092619985,154.86062544,0.00021323,4]
[312615789,1706092635983,154.86062544,0.00021323,4]
[312615790,1706092662058,154.86062544,0.00021323,4]
[312615791,1706092679981,154.86062544,0.00021323,4]
[312615792,1706092701999,154.86062544,0.00021323,4]
[312615793,1706092720016,154.86062544,0.00021323,4]
[312615794,1706092737982,154.86062544,0.00021323,4]
[312615795,1706092759992,154.86062544,0.00021323,4]
[312615796,1706092776002,154.86062544,0.00021323,4]
[312615797,1706092795993,154.86062544,0.00021323,4]
[312615798,1706092813992,154.86062544,0.00021323,4]
[312615799,1706092834019,154.86062544,0.00021323,4]
[312615800,1706092852016,154.86062544,0.00021323,4]
[312615801,1706092872019,154.86062544,0.00021323,4]
[312615802,1706092894006,154.86062544,0.00021323,4]
[312615803,1706092910012,154.86062544,0.00021323,4]
[312615804,1706092930009,154.86062544,0.00021323,4]
[312615805,1706092946011,154.86062544,0.00021323,4]
[312615806,1706092968022,154.86062544,0.00021323,4]
[312615807,1706092988035,154.86062544,0.00021323,4]
[312615808,1706093006015,154.86062544,0.00021323,4]
[312615809,1706093026029,154.86062544,0.00021323,4]
[312615810,1706093048035,154.86062544,0.00021323,4]
[312615811,1706093074040,154.86062544,0.00021323,4]
[312615812,1706093094036,154.86062544,0.00021323,4]
[312615813,1706093114249,154.86062544,0.00021323,4]
[312615814,1706093136043,154.86062544,0.00021323,4]
[312615815,1706093156055,154.86062544,0.00021323,4]
[312615816,1706093178057,154.86062544,0.00021323,4]
[312615817,1706093194047,154.86062544,0.00021323,4]
[312615818,1706093212057,154.86062544,0.00021323,4]
[312615819,1706093232381,154.86062544,0.00021323,4]
[312615820,1706093250068,154.86062544,0.00021323,4]
[312615821,1706093268072,154.86062544,0.00021323,4]
[312615822,1706093286072,154.86062544,0.00021323,4]
[312615823,1706093306074,154.86062544,0.00021323,4]
[312615824,1706093324072,154.86062544,0.00021323,4]
[312615825,1706093342084,154.86062544,0.00021323,4]
[312615826,1706093358306,154.86062544,0.00021323,4]
[312615827,1706093378085,154.86062544,0.00021323,4]
[312615828,1706093396246,154.84515485,0.00021323,4]
[312615829,1706093412090,154.84515485,0.00021323,4]
[312615830,1706093430096,154.84515485,0.00021323,4]
[312615874,1706093434165,-619.599095,0.00020875,2]
[312615875,1706093434175,-239.76,0.00020876,2]
[312615876,1706093434184,-154.84515485,0.00020877,2]
[312615877,1706093434193,-3316.97718776,0.00020878,2]
[312615941,1706093443542,-351.80375011,0.00020875,2]
[312615942,1706093443552,-1893.20881234,0.00020878,2]
[312615943,1706093443561,-1174.79935047,0.00020879,2]
[312615944,1706093443573,-1641.20332835,0.00020879,2]
[312615945,1706093443582,-542.98279954,0.00020893,2]
[312615946,1706093443592,-576.75900218,0.00020898,2]
[312615948,1706093443601,-35.47802425,0.00021191,2]
[312615949,1706093443616,-149.97234968,0.00021191,2]
[312615950,1706093443625,-7959.075262,0.00021266,2]
[312615951,1706093443636,-300.0,0.00021323,2]
[312615952,1706093443646,-1748.7359284,0.00021412,2]
[312615953,1706093443655,-154.86062544,0.00021412,2]
[312615955,1706093443664,-1161.3940434,0.00021498,2]
[312615957,1706093443673,-172.758131,0.00021918,2]
[312615959,1706093443682,-426.10577832,0.00022,2]
[312615961,1706093443692,-172.758131,0.00022773,2]
[312615963,1706093443701,-3969.42099078,0.00022999,2]
[312615965,1706093443711,-1415.66703516,0.00023217,2]
[312615967,1706093443720,-3485.76836938,0.00023218,2]
[312615969,1706093443728,-200.5358957,0.00023562,2]
[312615971,1706093443737,-172.758131,0.00023627,2]
[312615973,1706093443746,-587.11070318,0.00023639,2]
[312616016,1706093444163,-2270.65747099,0.00023639,2]
[312616018,1706093444175,-644.73653833,0.00023639,2]
[312616020,1706093444184,-230.63043702,0.00023684,3]
[312616176,1706093450095,154.84515485,0.00021323,4]
[312616177,1706093466096,154.84515485,0.00021323,4]
[312616179,1706093486131,154.84515485,0.00021323,4]
[312616180,1706093504223,154.84515485,0.00021323,4]
[312616186,1706093522110,154.84515485,0.00021323,4]
[312616187,1706093540120,154.84515485,0.00021323,4]
[312616188,1706093560112,154.84515485,0.00021323,4]
[312616189,1706093576155,154.84515485,0.00021323,4]
[312616190,1706093592138,154.84515485,0.00021323,4]
[312616191,1706093612133,154.84515485,0.00021323,4]
[312616192,1706093632120,154.84515485,0.00021323,4]
[312616193,1706093646121,154.84515485,0.00021501,4]
[312616194,1706093666135,154.84515485,0.00021501,4]
[312616195,1706093690136,154.84515485,0.00021501,4]
[312616196,1706093714141,154.84515485,0.00021501,4]
[312616197,1706093734173,154.84515485,0.00021501,4]
[312616198,1706093756134,101.67309371,0.00021501,4]
[312616199,1706093756162,53.17206114,0.00021501,4]
[312616200,1706093778142,154.84515485,0.00021501,4]
[312616201,1706093794470,154.86062544,0.00021501,4]
[312616202,1706093818134,154.86062544,0.00021501,4]
[312616203,1706093836147,154.86062544,0.00021501,4]
[312616204,1706093856148,154.86062544,0.00021414,4]
[312616205,1706093872643,154.86062544,0.00021414,4]
[312616206,1706093873674,5000.0,0.000231,4]
[312616207,1706093890656,154.86062544,0.00021414,4]
[312616208,1706093910675,154.86062544,0.00021414,4]
[312616209,1706093933153,154.84515485,0.00021414,4]
[312616220,1706093955163,110.91107219,0.00021414,4]
[312616235,1706094434119,-199.8,0.00020816,2]
[312616236,1706094434139,-154.87609912,0.00020816,2]
[312616237,1706094434158,-154.87609912,0.00020817,4]
[312616238,1706094434178,-163.77270421,0.00020817,2]
[312616239,1706094452769,154.87609912,0.00019906,3]
[312616240,1706094470937,154.87609912,0.00019906,3]
[312616241,1706094488754,154.87609912,0.00019906,3]
[312616242,1706094506763,154.87609912,0.00019906,3]
[312616243,1706094528766,154.87609912,0.00019906,3]
[312616244,1706094548767,154.87609912,0.00019906,3]
[312616246,1706094560098,-2816.00267882,0.00020823,2]
[312616247,1706094560118,-154.87609912,0.00020824,2]
[312616248,1706094560137,-619.599095,0.00020824,2]
[312616249,1706094560158,-8310.0319105,0.00020827,2]
[312616250,1706094560178,-225.46168146,0.0002087,2]
[312616251,1706094564766,154.87609912,0.00019906,3]
[312616252,1706094584782,154.87609912,0.00019906,3]
[312616253,1706094600806,154.87609912,0.00019906,3]
[312616257,1706094616779,154.87609912,0.00019906,3]
[312616522,1706094640778,154.87609912,0.00019906,3]
[312616627,1706094643423,-2816.00267882,0.00020869,2]
[312616629,1706094643433,-619.599095,0.00020869,2]
[312616631,1706094643442,-154.87609912,0.00020869,2]
[312616633,1706094643451,-586.52113844,0.0002087,2]
[312616635,1706094643460,-215.74224823,0.00021068,2]
[312616637,1706094643469,-135.41784648,0.00021462,2]
[312616639,1706094643481,-293.25995428,0.00021462,2]
[312616641,1706094643491,-172.758131,0.00021918,2]
[312616643,1706094643500,-172.61657953,0.00022,2]
[312616645,1706094643512,-268.24199987,0.00022,2]
[312616647,1706094643525,-2659.12078336,0.00022,2]
[312616651,1706094643549,-869.44162802,0.00022,2]
[312616653,1706094643558,-164.445356,0.00022026,2]
[312616655,1706094643566,-1010.40628053,0.00022101,2]
[312616657,1706094643575,-2248.65,0.0002211,3]
[312616658,1706094643584,-477.37394316,0.00022118,2]
[312616659,1706094643594,-155.15670886,0.00022118,2]
[312616660,1706094643603,-658.18472408,0.00022119,2]
[312616661,1706094643612,-12215.50653177,0.0002212,2]
[312616662,1706094643624,-1923.02127082,0.0002212,2]
[312616666,1706094646490,-3082.32,0.0002211,3]
[312616667,1706094646499,-14477.592537,0.0002212,2]
[312616671,1706094658777,154.87609912,0.00019906,3]
[312616673,1706094678782,154.87609912,0.00019906,3]
[312616674,1706094696787,154.87609912,0.00019906,3]
[312616675,1706094722289,154.87609912,0.00019906,3]
[312616676,1706094742277,154.87609912,0.00019906,3]
[312616678,1706094764780,154.87609912,0.00019906,3]
[312616679,1706094781031,154.87609912,0.00019906,3]
[312616680,1706094805275,154.87609912,0.00019906,3]
[312616681,1706094817296,154.87609912,0.00019906,3]
[312616682,1706094835298,154.87609912,0.00019906,3]
[312616683,1706094855295,154.87609912,0.00019906,3]
[312616684,1706094863894,684.06765609,0.00019906,2]
[312616685,1706094866376,1114.65598908,0.00019906,2]
[312616686,1706094866511,620.37329655,0.00019906,2]
[312616687,1706094866639,548.10984714,0.00019906,2]
[312616688,1706094869524,1855.23942684,0.00019906,2]
[312616689,1706094869902,290.14513525,0.00019906,2]
[312616690,1706094871797,154.8915759,0.00019906,3]
[312616691,1706094872229,978.2579722,0.00019906,2]
[312616692,1706094872357,1109.98253014,0.00019906,2]
[312616693,1706094873147,343.19914178,0.00019906,2]
[312616694,1706094874493,156.30241917,0.00019906,2]
[312616695,1706094876486,157.08029083,0.00019906,2]
[312616696,1706094882504,206.16535719,0.00019906,2]
[312616697,1706094882692,189.3589828,0.00019906,2]
[312616698,1706094883910,191.40104537,0.00019906,2]
[312616699,1706094884497,638.89080957,0.00019906,2]
[312616700,1706094887792,154.8915759,0.00019906,3]
[312616701,1706094888354,1109.51816487,0.00019906,2]
[312616702,1706094902023,156.65970138,0.0002,2]
[312616703,1706094907797,154.8915759,0.00018869,3]
[312616704,1706094928299,154.8915759,0.00018869,3]
[312616705,1706094946306,154.8915759,0.00018868,3]
[312616706,1706094962307,154.8915759,0.00018488,3]
[312616707,1706094980806,154.8915759,0.00018488,3]
[312616708,1706095000817,154.8915759,0.00018487,3]
[312616709,1706095016814,154.8915759,0.00018014,3]
[312616710,1706095038632,24900.0,0.00019015,2]
[312616711,1706095041322,154.8915759,0.00018011,3]
[312616712,1706095059321,154.8915759,0.00018008,3]
[312616713,1706095069385,154.8915759,0.0002,2]
[312616714,1706095071553,154.8915759,0.0002,2]
[312616715,1706095081327,154.8915759,0.00018005,3]
[312616716,1706095082272,680.27751696,0.0002,2]
[312616717,1706095085788,2039.5598213,0.0002,2]
[312616718,1706095090315,237.74153663,0.0002,2]
[312616719,1706095091446,2816.00267882,0.0002,2]
[312616721,1706095099848,154.8915759,0.00018005,3]
[312616722,1706095100903,154.8915759,0.0002,2]
[312616723,1706095103312,351.80375011,0.0002,2]
[312616724,1706095103600,21690.99033113,0.0002,2]
[312616725,1706095103727,678.88445844,0.0002,2]
[312616726,1706095105131,818.67757888,0.0002,2]
[312616729,1706095112739,2274.5447759,0.00019005,2]
[312616730,1706095114390,874.66183171,0.0002,2]
[312616731,1706095115562,161.07323855,0.0002,2]
[312616732,1706095116411,4815.22334348,0.0002,2]
[312616733,1706095116859,154.8915759,0.0002,2]
[312616734,1706095117606,21690.99033113,0.00019805,2]
[312616735,1706095119829,154.8915759,0.00018005,3]
[312616736,1706095120622,1741.4785695,0.0002,2]
[312616737,1706095121883,561.77353058,0.0002,2]
[312616738,1706095123279,5210.1860001,0.0002,2]
[312616739,1706095123499,19706.16354589,0.0002,2]
[312616740,1706095127760,250.0,0.00019435,2]
[312616742,1706095137903,154.8915759,0.0002,2]
[312616743,1706095139844,154.8915759,0.00018005,3]
[312616744,1706095143548,524.5023181,0.00019572,2]
[312616745,1706095159876,154.8915759,0.00018869,3]
[312616746,1706095166455,2816.00267882,0.0002,2]
[312616747,1706095166800,237.74153663,0.0002,2]
[312616748,1706095178337,154.8915759,0.00018869,3]
[312616749,1706095195780,5210.1860001,0.0002,2]
[312616750,1706095196358,154.8915759,0.00018002,3]
[312616751,1706095213109,771.8672126,0.00019363,2]
[312616752,1706095220342,1253.78104744,0.0002,2]
[312616753,1706095220370,154.90705577,0.00018002,3]
[312616754,1706095231567,2816.00267882,0.0002,2]
[312616755,1706095233065,619.599095,0.0002,2]
[312616756,1706095233710,329.63381135,0.0002,2]
[312616757,1706095236853,154.90705577,0.00018869,3]
[312616758,1706095237115,1495.38411653,0.0002,2]
[312616759,1706095239998,154.90705577,0.0002,2]
[312616760,1706095243308,237.74153663,0.0002,2]
[312616761,1706095254350,351.80375011,0.0002,2]
[312616762,1706095258850,154.90705577,0.00018869,3]
[312616763,1706095260382,5210.1860001,0.0002,2]
[312616765,1706095275460,177.569411,0.00019234,2]
[312616766,1706095276860,154.90705577,0.00018869,3]
[312616767,1706095294865,154.90705577,0.00018869,3]
[312616768,1706095300461,622.6722025,0.00019649,2]
[312616769,1706095313417,154.90705577,0.00018869,3]
[312616770,1706095326387,154.90705577,0.0002,2]
[312616771,1706095328411,154.90705577,0.0002,2]
[312616772,1706095335377,154.90705577,0.00018002,3]
[312616773,1706095340792,5210.1860001,0.0002,2]
[312616774,1706095353373,154.90705577,0.00018,3]
[312616775,1706095354789,5210.1860001,0.0002,2]
[312616776,1706095357816,400.34418445,0.00018869,2]
[312616777,1706095362109,619.599095,0.0002,2]
[312616778,1706095363980,2816.00267882,0.0002,2]
[312616779,1706095364133,2003.13525957,0.0002,2]
[312616780,1706095365030,537.44070193,0.00018869,2]
[312616782,1706095371998,317.44380309,0.00018869,2]
[312616783,1706095372831,5210.1860001,0.0002,2]
[312616784,1706095373810,400.34418445,0.00018869,2]
[312616785,1706095373872,154.90705577,0.00018,3]
[312616786,1706095378125,1072.69623306,0.0002,2]
[312616787,1706095380093,619.599095,0.0002,2]
[312616788,1706095383987,2816.00267882,0.0002,2]
[312616789,1706095389820,300.06554441,0.00018,2]
[312616790,1706095391883,154.90705577,0.00018,3]
[312616791,1706095392798,1476.13759992,0.0002,2]
[312616793,1706095415997,154.90705577,0.00018002,3]
[312616794,1706095432391,154.90705577,0.00018002,3]
[312616795,1706095448389,154.90705577,0.00018002,3]
[312616796,1706095451835,1090.372513,0.0001921,2]
[312616797,1706095470392,154.90705577,0.00018002,3]
[312616798,1706095487949,8289.99926392,0.00019141,2]
[312616799,1706095487979,10000.0,0.00019141,2]
[312616800,1706095488008,6610.00073608,0.00019141,2]
[312616801,1706095490393,154.90705577,0.00018,3]
[312616802,1706095508905,154.90705577,0.00018,3]
[312616803,1706095510516,3080.18515238,0.00019141,2]
[312616804,1706095510543,10000.0,0.00019141,2]
[312616805,1706095524906,154.90705577,0.00017996,3]
[312616806,1706095542906,154.90705577,0.00017224,3]
[312616807,1706095565456,154.90705577,0.00017224,3]
[312616808,1706095585405,154.90705577,0.00017224,3]
[312616809,1706095601415,154.90705577,0.0001722,3]
[312616810,1706095605097,-154.92879194,0.00019133,2]
[312616811,1706095619967,154.90705577,0.0001722,3]
[312616812,1706095637941,154.90705577,0.0001722,3]
[312616813,1706095661194,154.90705577,0.00017225,3]
[312616814,1706095666448,156.07097879,0.00017224,2]
[312616815,1706095678416,154.90705577,0.00017225,3]
[312616816,1706095696416,154.90705577,0.00017215,3]
[312616817,1706095716426,154.90705577,0.00017215,3]
[312616818,1706095732928,154.90705577,0.00017215,3]
[312616819,1706095750927,154.90705577,0.00017212,3]
[312616820,1706095766929,154.90705577,0.00017212,3]
[312616821,1706095786944,154.90705577,0.00017212,3]
[312616823,1706095805443,154.90705577,0.00017225,3]
[312616824,1706095825442,154.90705577,0.00017209,3]
[312616852,1706095838580,-237.74153663,0.00019121,2]
[312616853,1706095838590,-2816.00267882,0.00019121,2]
[312616854,1706095838599,-818.67757888,0.00019122,2]
[312616855,1706095838608,-619.599095,0.00019122,2]
[312616856,1706095838618,-154.90705577,0.00019123,2]
[312616857,1706095838626,-15919.38726516,0.00019123,2]
[312616858,1706095838636,-208.24574178,0.00019128,2]
[312616859,1706095838645,-56469.64154752,0.00019141,2]
[312616860,1706095838655,-166.98967161,0.000199,2]
[312616861,1706095838664,-1551.7782915,0.0002,2]
[312616862,1706095838673,-155.33530448,0.00020005,2]
[312616864,1706095838683,-680.25044799,0.00020005,2]
[312616866,1706095838693,-711.40964624,0.00020005,2]
[312616867,1706095838702,-161.07323855,0.00020005,2]
[312616868,1706095838712,-2417.2417052,0.00020005,2]
[312616869,1706095838721,-601.79856955,0.00020005,2]
[312616870,1706095838731,-1445.17350617,0.00020005,2]
[312616871,1706095838740,-2669.9515149,0.00020005,2]
[312616872,1706095838750,-2039.05381066,0.00020006,2]
[312616873,1706095838760,-151.0,0.00020011,2]
[312616874,1706095838769,-387.67756947,0.0002002,2]
[312616875,1706095838779,-151.671708,0.00020542,2]
[312616876,1706095838788,-1184.38033422,0.00020542,2]
[312616877,1706095838797,-439.90654717,0.00020547,2]
[312616878,1706095839002,-1034.03006206,0.00020547,2]
[312616879,1706095839016,-223.55136797,0.00020966,2]
[312616880,1706095839026,-273.50578619,0.00020966,2]
[312616881,1706095839035,-329.73461939,0.00020966,2]
[312616882,1706095839046,-351.8970268,0.00020966,2]
[312616883,1706095839055,-213.08146898,0.00020967,2]
[312616884,1706095839069,-417.731225,0.00020968,2]
[312616885,1706095839079,-417.731225,0.00020968,2]
[312616886,1706095839090,-3589.767629,0.00020968,2]
[312616887,1706095839100,-3351.81911249,0.00020968,2]
[312616992,1706095847960,-154.90705577,0.00020967,4]
[312616994,1706095847969,-237.94851651,0.00020968,2]
[312616996,1706095847978,-4986.090735,0.00020968,2]
[312616998,1706095847987,-2334.18460639,0.00020968,2]
[312617000,1706095847999,-2651.90612861,0.00020968,2]
[312617011,1706095848098,-8086.43245071,0.00020968,2]
[312617013,1706095848110,-2052.25374495,0.00020968,2]
[312617024,1706095863457,154.90705577,0.00018869,3]
[312617025,1706095866361,330.76694482,0.0001861,2]
[312617026,1706095879451,154.90705577,0.0001861,3]
[312617027,1706095903456,154.90705577,0.00018609,3]
[312617028,1706095921584,154.90705577,0.000186,3]
[312617029,1706095943959,154.90705577,0.00018609,3]
[312617030,1706095957968,154.90705577,0.000186,3]
[312617031,1706095979978,154.90705577,0.00017706,3]
[312617032,1706096004463,154.8915759,0.00017706,3]
[312617033,1706096026480,154.8915759,0.00017706,3]
[312617034,1706096048480,154.8915759,0.00017706,3]
[312617035,1706096068970,154.8915759,0.00017706,3]
[312617036,1706096085204,154.8915759,0.00017706,3]
[312617037,1706096111477,154.8915759,0.00017706,3]
[312617038,1706096127476,154.8915759,0.00017706,3]
[312617039,1706096141206,258.45171298,0.000189,2]
[312617040,1706096147487,154.8915759,0.00017706,3]
[312617041,1706096165481,154.8915759,0.00017706,3]
[312617042,1706096185980,154.8915759,0.00017706,3]
[312617043,1706096203994,154.8915759,0.00017706,3]
[312617044,1706096208688,619.599095,0.00017705,2]
[312617045,1706096219998,154.8915759,0.00017706,3]
[312617046,1706096240013,154.87609912,0.00017706,3]
[312617047,1706096262523,154.87609912,0.00017706,3]
[312617048,1706096284524,154.87609912,0.00017706,3]
[312617049,1706096305016,154.87609912,0.00017706,3]
[312617050,1706096323028,154.87609912,0.00017706,3]
[312617051,1706096339028,154.87609912,0.00017706,3]
[312617052,1706096355023,154.87609912,0.00017706,3]
[312617053,1706096375530,154.87609912,0.00017706,3]
[312617054,1706096393527,154.87609912,0.00017706,3]
[312617055,1706096415538,154.87609912,0.00017706,3]
[312617056,1706096440030,154.87609912,0.00018609,3]
[312617057,1706096462036,154.87609912,0.00018609,3]
[312617058,1706096480028,154.87609912,0.000186,3]
[312617059,1706096496536,154.87609912,0.00018609,3]
[312617060,1706096514759,154.87609912,0.000186,3]
[312617061,1706096532538,154.87609912,0.00018609,3]
[312617062,1706096549068,154.87609912,0.000186,3]
[312617063,1706096567071,154.87609912,0.000186,3]
[312617064,1706096593086,154.87609912,0.000186,3]
[312617065,1706096606846,115.99713585,0.00018959,2]
[312617066,1706096613600,154.87609912,0.00018609,3]
[312617067,1706096629627,154.87609912,0.000186,3]
[312617068,1706096645582,154.87609912,0.000186,3]
[312617069,1706096662077,154.87609912,0.000186,3]
[312617070,1706096680081,154.87609912,0.00018609,3]
[312617071,1706096700082,154.86062544,0.000186,3]
[312617072,1706096716084,154.86062544,0.00018609,3]
[312617073,1706096736592,154.86062544,0.000186,3]
[312617074,1706096752595,154.86062544,0.00018609,3]
[312617075,1706096770588,154.86062544,0.00018609,3]
[312617076,1706096786642,154.86062544,0.000186,3]
[312617077,1706096807098,154.86062544,0.000186,3]
[312617078,1706096823109,154.86062544,0.000186,3]
[312617079,1706096824622,545.186256,0.00018691,2]
[312617080,1706096829624,154.86062544,0.0001869,2]
[312617081,1706096843207,154.86062544,0.00018609,3]
[312617082,1706096861614,154.86062544,0.00018609,3]
[312617083,1706096881617,154.86062544,0.000186,3]
[312617084,1706096905610,154.86062544,0.000186,3]
[312617085,1706096932109,154.86062544,0.000186,3]
[312617086,1706096950139,154.86062544,0.00018609,3]
[312617087,1706096966140,154.86062544,0.00017303,3]
[312617089,1706096982623,154.86062544,0.00017303,3]
[312617090,1706097002623,154.86062544,0.00017303,3]
[312617092,1706097020622,154.86062544,0.00017303,3]
[312617158,1706097038218,-2816.00267882,0.00018887,2]
[312617160,1706097038228,-619.599095,0.00018888,2]
[312617162,1706097038238,-154.86062544,0.00018889,2]
[312617163,1706097038247,-172.30114198,0.000189,2]
[312617164,1706097038257,-51.01994492,0.00018959,2]
[312617165,1706097038266,-6389.06603672,0.00019227,2]
[312617166,1706097038285,-18510.93396328,0.00019227,2]
[312617167,1706097038294,-154.9690062,0.00019674,2]
[312617168,1706097038303,-1034.03006206,0.00020254,2]
[312617169,1706097038313,-2415.04531492,0.00020669,3]